Workbook

Sheet Лист1
A1: z | B1: w | D1: x | G1: не x | H1: не x +y | L1: y
A2: 0 | B2: 0 | D2: 0 | G2: 1 | H2: =OR(L2,G2) -> TRUE | I2: 1 | J2: =A2=I2 -> FALSE | K2: 0 | L2: 0 | M2: =B2*K2 -> 0
A3: 0 | B3: 1 | D3: 0 | G3: 1 | H3: =OR(L3,G3) -> TRUE | I3: 1 | J3: =A3=I3 -> FALSE | K3: 0 | L3: 0 | M3: =B3*K3 -> 0
A4: 1 | B4: 0 | D4: 0 | G4: 1 | H4: =OR(L4,G4) -> TRUE | I4: 1 | J4: =A4=I4 -> TRUE | K4: 1 | L4: 0 | M4: =B4*K4 -> 0
A5: 0 | B5: 0 | D5: 0 | G5: 1 | H5: =OR(L5,G5) -> TRUE | I5: 1 | J5: =A5=I5 -> FALSE | K5: 0 | L5: 1 | M5: =B5*K5 -> 0
A6: 0 | B6: 1 | D6: 0 | G6: 1 | H6: =OR(L6,G6) -> TRUE | I6: 1 | J6: =A6=I6 -> FALSE | K6: 0 | L6: 1 | M6: =B6*K6 -> 0
A7: 1 | B7: 0 | D7: 0 | G7: 1 | H7: =OR(L7,G7) -> TRUE | I7: 1 | J7: =A7=I7 -> TRUE | K7: 1 | L7: 1 | M7: =B7*K7 -> 0
A8: 0 | B8: 0 | D8: 1 | G8: 0 | H8: =OR(L8,G8) -> FALSE | I8: 0 | J8: =A8=I8 -> TRUE | K8: 1 | L8: 0 | M8: =B8*K8 -> 0
A9: 1 | B9: 0 | D9: 1 | G9: 0 | H9: =OR(L9,G9) -> FALSE | I9: 0 | J9: =A9=I9 -> FALSE | K9: 0 | L9: 0 | M9: =B9*K9 -> 0
A14: 1 | B14: 1 | D14: 0 | G14: 1 | H14: =OR(L14,G14) -> TRUE | I14: 1 | J14: =A14=I14 -> TRUE | K14: 1 | L14: 0 | M14: =B14*K14 -> 1
A15: 1 | B15: 1 | D15: 0 | G15: 1 | H15: =OR(L15,G15) -> TRUE | I15: 1 | J15: =A15=I15 -> TRUE | K15: 1 | L15: 1 | M15: =B15*K15 -> 1
A16: 0 | B16: 1 | D16: 1 | G16: 0 | H16: =OR(L16,G16) -> FALSE | I16: 0 | J16: =A16=I16 -> TRUE | K16: 1 | L16: 0 | M16: =B16*K16 -> 1
A17: 1 | B17: 1 | D17: 1 | G17: 0 | H17: =OR(L17,G17) -> TRUE | I17: 1 | J17: =A17=I17 -> TRUE | K17: 1 | L17: 1 | M17: =B17*K17 -> 1
A18: 1 | B18: 1 | D18: 1 | G18: 0 | H18: =OR(L18,G18) -> FALSE | I18: 0 | J18: =A18=I18 -> FALSE | K18: 0 | L18: 0 | M18: =B18*K18 -> 0
A19: 0 | B19: 0 | D19: 1 | G19: 0 | H19: =OR(L19,G19) -> TRUE | I19: 1 | J19: =A19=I19 -> FALSE | K19: 0 | L19: 1 | M19: =B19*K19 -> 0
A20: 0 | B20: 1 | D20: 1 | G20: 0 | H20: =OR(L20,G20) -> TRUE | I20: 1 | J20: =A20=I20 -> FALSE | K20: 0 | L20: 1 | M20: =B20*K20 -> 0
A21: 1 | B21: 0 | D21: 1 | G21: 0 | H21: =OR(L21,G21) -> TRUE | I21: 1 | J21: =A21=I21 -> TRUE | K21: 1 | L21: 1 | M21: =B21*K21 -> 0

Sheet Лист2
A1: i
A2: 3 | B2: =A2*155 -> 465 | C2: =B2/8 -> 58.125 | D2: =C2*202303 -> 11758861.88 | E2: =D2/(1024*1024) -> 11.21412456
A3: 4 | B3: =A3*155 -> 620 | C3: =B3/8 -> 77.5 | D3: =C3*202303 -> 15678482.5 | E3: =D3/(1024*1024) -> 14.95216608
A4: 5 | B4: 775 | C4: 96.875 | D4: 19598103.12 | E4: 18.6902076
A5: 6 | B5: 930 | C5: 116.25 | D5: 23517723.75 | E5: 22.42824912
A6: 7 | B6: 1085 | C6: 135.625 | D6: 27437344.38 | E6: 26.16629064
A7: 8 | B7: 1240 | C7: 155 | D7: 31356965 | E7: 29.90433216 | F7: =2^8 -> 256 | G7: 257
A8: 9 | B8: =A8*155 -> 1395 | C8: =B8/8 -> 174.375 | D8: =C8*202303 -> 35276585.62 | E8: =D8/(1024*1024) -> 33.64237368
A9: 10 | B9: 1550 | C9: 193.75 | D9: 39196206.25 | E9: 37.3804152
A10: 11 | B10: 1705 | C10: 213.125 | D10: 43115826.88 | E10: 41.11845672
A11: 12 | B11: =A11*27 -> 324 | C11: =B11/8 -> 40.5 | D11: =C11*3000000 -> 121500000 | E11: =D11/(1024*1024) -> 115.8714294
A12: 13 | B12: 351 | C12: 43.875 | D12: 131625000 | E12: 125.5273819
A13: 14 | B13: 378 | C13: 47.25 | D13: 141750000 | E13: 135.1833344
A14: 15 | B14: =A14*27 -> 405 | C14: =B14/8 -> 50.625 | D14: =C14*3000000 -> 151875000 | E14: =D14/(1024*1024) -> 144.8392868
A15: 16 | B15: =A15*27 -> 432 | C15: =B15/8 -> 54 | D15: =C15*3000000 -> 162000000 | E15: =D15/(1024*1024) -> 154.4952393 | F15: =2^15 -> 32768
A16: 17
A17: 18
A18: 19
A19: 20
A20: 21
A21: 22
A22: 23
A23: 24
A24: 25
A25: 26
A26: 27
A27: 28
A28: 29
A29: 30
A30: 31
A31: 32
A32: 33
A33: 34
A34: 35
A35: 36
A36: 37
A37: 38
A38: 39
A39: 40
A40: 41
A41: 42
A42: 43
A43: 44
A44: 45
A45: 46
A46: 47
A47: 48
A48: 49
A49: 50
A50: 51
A51: 52
A52: 53
A53: 54
A54: 55

Sheet Лист3
A1: 0 | B1: 0 | C1: 0 | D1: 0 | E1: 0
A2: 0 | B2: 0 | C2: 0 | D2: 0 | E2: 1
A3: 0 | B3: 0 | C3: 0 | D3: 1 | E3: 0
A4: 0 | B4: 0 | C4: 0 | D4: 1 | E4: 1
A5: 0 | B5: 0 | C5: 1 | D5: 0 | E5: 0
A6: 0 | B6: 0 | C6: 1 | D6: 0 | E6: 1
A7: 0 | B7: 0 | C7: 1 | D7: 1 | E7: 0
A8: 0 | B8: 0 | C8: 1 | D8: 1 | E8: 1
A9: 0 | B9: 1 | C9: 0 | D9: 0 | E9: 0
A10: 0 | B10: 1 | C10: 0 | D10: 0 | E10: 1
A11: 0 | B11: 1 | C11: 0 | D11: 1 | E11: 0
A12: 0 | B12: 1 | C12: 0 | D12: 1 | E12: 1
A13: 0 | B13: 1 | C13: 1 | D13: 0 | E13: 0
A14: 0 | B14: 1 | C14: 1 | D14: 0 | E14: 1
A15: 0 | B15: 1 | C15: 1 | D15: 1 | E15: 0
A16: 0 | B16: 1 | C16: 1 | D16: 1 | E16: 1
A17: 1 | B17: 0 | C17: 0 | D17: 0 | E17: 0
A18: 1 | B18: 0 | C18: 0 | D18: 0 | E18: 1
A19: 1 | B19: 0 | C19: 0 | D19: 1 | E19: 0
A20: 1 | B20: 0 | C20: 0 | D20: 1 | E20: 1
A21: 1 | B21: 0 | C21: 1 | D21: 0 | E21: 0
A22: 1 | B22: 0 | C22: 1 | D22: 0 | E22: 1
A23: 1 | B23: 0 | C23: 1 | D23: 1 | E23: 0
A24: 1 | B24: 0 | C24: 1 | D24: 1 | E24: 1
A25: 1 | B25: 1 | C25: 0 | D25: 0 | E25: 0
A26: 1 | B26: 1 | C26: 0 | D26: 0 | E26: 1
A27: 1 | B27: 1 | C27: 0 | D27: 1 | E27: 0
A28: 1 | B28: 1 | C28: 0 | D28: 1 | E28: 1
A29: 1 | B29: 1 | C29: 1 | D29: 0 | E29: 0
A30: 1 | B30: 1 | C30: 1 | D30: 0 | E30: 1
A31: 1 | B31: 1 | C31: 1 | D31: 1 | E31: 0
A32: 1 | B32: 1 | C32: 1 | D32: 1 | E32: 1
